fUSD/lending_fUSD_20250414
["ID","MTS","AMOUNT","RATE_DAILY","PERIOD"]
[357967026,1744626648260,-500.0,0.00019725,2]
[357967027,1744626648273,-474.5,0.00019725,2]
[357967028,1744626648283,-500.0,0.00019725,2]
[357967029,1744626648294,-414.52688351,0.00019726,2]
[357967030,1744626648305,-500.0,0.00019726,2]
[357967031,1744626648315,-500.0,0.00019726,2]
[357967032,1744626648325,-500.0,0.00019726,2]
[357967033,1744626648335,-500.0,0.00019726,2]
[357967034,1744626648345,-304.46,0.00019726,2]
[357967035,1744626648356,-500.0,0.00019726,2]
[357967036,1744626648366,-500.0,0.00019726,2]
[357967037,1744626648376,-537.81,0.00019726,2]
[357967038,1744626648386,-500.0,0.00019726,2]
[357967039,1744626648396,-500.0,0.00019726,2]
[357967040,1744626648407,-378.97065004,0.00019726,2]
[357967041,1744626648417,-307.7,0.00019726,2]
[357967042,1744626648427,-500.0,0.00019726,2]
[357967043,1744626648438,-442.53,0.00019726,2]
[357967044,1744626648448,-500.0,0.00019726,2]
[357967045,1744626648458,-350.51,0.00019726,2]
[357967046,1744626648469,-500.0,0.00019726,2]
[357967047,1744626648479,-427.08,0.00019726,2]
[357967048,1744626648489,-560.68301307,0.00019726,2]
[357967049,1744626648499,-500.0,0.00019726,2]
[357967050,1744626648509,-293.33,0.00019726,2]
[357967051,1744626648519,-485.84917166,0.00019726,2]
[357967052,1744626648528,-500.0,0.00019726,2]
[357967053,1744626648538,-500.0,0.00019726,2]
[357967054,1744626648548,-500.0,0.00019726,2]
[357967055,1744626648558,-500.0,0.00019726,2]
[357967056,1744626648568,-500.0,0.00019726,2]
[357967057,1744626648578,-500.0,0.00019726,2]
[357967058,1744626648588,-815.87,0.00019726,2]
[357967059,1744626648598,-500.0,0.00019726,2]
[357967060,1744626648608,-500.0,0.00019726,2]
[357967061,1744626648618,-262.58,0.00019726,2]
[357967062,1744626648629,-500.0,0.00019726,2]
[357967063,1744626648639,-500.0,0.00019726,2]
[357967064,1744626648649,-241.15,0.00019726,2]
[357967065,1744626648660,-500.0,0.00019726,2]
[357967066,1744626648670,-500.0,0.00019726,2]
[357967067,1744626648681,-176.89006173,0.00019726,2]
[357967068,1744626648690,-500.0,0.00019726,2]
[357967069,1744626648700,-500.0,0.00019726,2]
[357967070,1744626648710,-500.0,0.00019726,2]
[357967071,1744626648720,-306.40127736,0.00019726,2]
[357967072,1744626648730,-500.0,0.00019726,2]
[357967073,1744626648739,-160.84,0.00019726,2]
[357967074,1744626648749,-500.0,0.00019726,2]
[357967075,1744626648759,-502.45747464,0.00019726,2]
[357967076,1744626648769,-537.89,0.00019726,2]
[357967077,1744626648778,-156.80770081,0.00019726,2]
[357967078,1744626648788,-545.78,0.00019726,2]
[357967079,1744626648798,-263.72,0.00019726,2]
[357967080,1744626648808,-500.0,0.00019726,2]
[357967081,1744626648818,-560.49,0.00019726,2]
[357967082,1744626648828,-880.98,0.00019726,2]
[357967083,1744626648837,-500.0,0.00019726,2]
[357967084,1744626648847,-503.81,0.00019726,2]
[357967085,1744626648857,-500.0,0.00019726,2]
[357967086,1744626648867,-27118.16,0.00019726,2]
[357967087,1744626648877,-281.73,0.00019726,2]
[357967088,1744626648887,-500.0,0.00019726,2]
[357967089,1744626648897,-1402.26,0.00019726,2]
[357967090,1744626648907,-952.99,0.00019726,2]
[357967091,1744626648917,-500.0,0.00019726,2]
[357967092,1744626648926,-404.28,0.00019726,2]
[357967093,1744626648936,-639.96,0.00019726,2]
[357967094,1744626648946,-500.0,0.00019726,2]
[357967095,1744626648957,-514.64,0.00019726,2]
[357967096,1744626648967,-500.0,0.00019726,2]
[357967097,1744626648977,-3760.62,0.00019726,2]
[357967098,1744626648987,-500.0,0.00019726,2]
[357967099,1744626648996,-500.0,0.00019726,2]
[357967100,1744626649006,-500.0,0.00019726,2]
[357967101,1744626649016,-500.0,0.00019726,2]
[357967102,1744626649026,-356.58,0.00019726,2]
[357967103,1744626649036,-1060.61,0.00019726,2]
[357967104,1744626649046,-500.0,0.00019726,2]
[357967105,1744626649056,-500.0,0.00019726,2]
[357967106,1744626649066,-500.0,0.00019726,2]
[357967107,1744626649075,-500.0,0.00019726,2]
[357967108,1744626649086,-505.81,0.00019726,2]
[357967109,1744626649096,-544.33546063,0.00019726,2]
[357967110,1744626649105,-288.38,0.00019726,2]
[357967111,1744626649115,-401.2,0.00019726,2]
[357967112,1744626649125,-500.0,0.00019726,2]
[357967113,1744626649135,-735.33,0.00019726,2]
[357967114,1744626649144,-500.0,0.00019726,2]
[357967115,1744626649155,-500.0,0.00019726,2]
[357967116,1744626649165,-549.6,0.00019726,2]
[357967117,1744626649180,-500.0,0.00019726,2]
[357967118,1744626649191,-983.95,0.00019726,2]
[357967119,1744626649203,-269.99,0.00019726,2]
[357967120,1744626649214,-500.0,0.00019726,2]
[357967121,1744626649225,-500.0,0.00019726,2]
[357967122,1744626649235,-1164.09,0.00019726,2]
[357967123,1744626649246,-500.0,0.00019726,2]
[357967124,1744626649257,-500.0,0.00019726,2]
[357967125,1744626649269,-500.0,0.00019726,2]
[357967126,1744626649280,-500.0,0.00019726,2]
[357967127,1744626649290,-500.0,0.00019726,2]
[357967128,1744626649301,-500.0,0.00019726,2]
[357967129,1744626649312,-527.03,0.00019726,2]
[357967130,1744626649323,-500.0,0.00019726,2]
[357967131,1744626649334,-542.89608322,0.00019726,2]
[357967132,1744626649346,-500.0,0.00019726,2]
[357967133,1744626649355,-569.16,0.00019726,2]
[357967134,1744626649365,-302.03546072,0.00019726,2]
[357967135,1744626649375,-414.52688351,0.00019728,2]
[357967136,1744626649385,-414.52688351,0.00019736,2]
[357967137,1744626649395,-150.0,0.00019748,2]
[357967138,1744626649405,-150.0,0.00019752,2]
[357967139,1744626649415,-767.73613326,0.00019758,2]
[357967140,1744626649425,-150.0,0.00019758,2]
[357967141,1744626649437,-1156.51154708,0.00019773,2]
[357967142,1744626649447,-150.0,0.0001979,2]
[357967143,1744626649459,-370.48724768,0.00019794,2]
[357967144,1744626649469,-1482.3766796,0.00019799,2]
[357967145,1744626649480,-50857.30836725,0.000198,2]
[357967146,1744626649490,-150.0,0.00019802,2]
[357967147,1744626649500,-971.93466628,0.00019809,2]
[357967148,1744626649510,-150.0,0.00019809,2]
[357967149,1744626649520,-12500.0,0.00019812,2]
[357967150,1744626649531,-12500.0,0.00019821,2]
[357967151,1744626649541,-150.0,0.00019824,2]
[357967152,1744626649551,-12500.0,0.0001983,2]
[357967153,1744626649561,-1156.51154708,0.00019837,2]
[357967154,1744626649571,-12500.0,0.00019838,2]
[357967155,1744626649581,-150.0,0.0001984,2]
[357967156,1744626649590,-12500.0,0.00019847,2]
[357967157,1744626649599,-12500.0,0.00019856,2]
[357967158,1744626649608,-150.0,0.00019859,2]
[357967159,1744626649618,-150.0,0.00019859,2]
[357967160,1744626649628,-500.0,0.00019863,2]
[357967161,1744626649637,-377.97900291,0.00019863,2]
[357967162,1744626649647,-500.0,0.00019863,2]
[357967163,1744626649657,-500.0,0.00019863,2]
[357967164,1744626649667,-500.0,0.00019863,2]
[357967165,1744626649676,-500.0,0.00019863,2]
[357967166,1744626649686,-500.0,0.00019863,2]
[357967167,1744626649695,-500.0,0.00019863,2]
[357967168,1744626649706,-500.0,0.00019863,2]
[357967169,1744626649715,-500.0,0.00019863,2]
[357967170,1744626649724,-500.0,0.00019863,2]
[357967171,1744626649734,-500.0,0.00019863,2]
[357967172,1744626649743,-500.0,0.00019863,2]
[357967173,1744626649753,-631.95100679,0.00019863,2]
[357967174,1744626649763,-500.0,0.00019863,2]
[357967175,1744626649772,-500.0,0.00019863,2]
[357967176,1744626649781,-500.0,0.00019863,2]
[357967177,1744626649790,-550.0,0.00019863,2]
[357967178,1744626649800,-12500.0,0.00019865,2]
[357967179,1744626649811,-2726.418,0.00019869,2]
[357967180,1744626649821,-150.0,0.00019872,2]
[357967181,1744626649831,-12500.0,0.00019874,2]
[357967182,1744626649840,-191.71584393,0.00019874,2]
[357967183,1744626649850,-150.0,0.00019879,2]
[357967184,1744626649859,-150.0,0.00019881,2]
[357967185,1744626649869,-12500.0,0.00019882,2]
[357967186,1744626649878,-12500.0,0.00019891,2]
[357967187,1744626650027,-189.27754714,0.000199,2]
[357967188,1744626650037,-12500.0,0.000199,2]
[357967189,1744626650049,-1760.46444872,0.000199,2]
[357967190,1744626650058,-50000.0,0.000199,2]
[357967191,1744626650068,-12500.0,0.000199,2]
[357967192,1744626650077,-375.23358628,0.000199,2]
[357967193,1744626650087,-971.93466628,0.000199,2]
[357967194,1744626650097,-1156.51154708,0.000199,2]
[357967195,1744626650107,-203.61373272,0.000199,2]
[357967196,1744626650117,-150.0,0.00019909,2]
[357967197,1744626650127,-150.0,0.00019915,2]
[357967198,1744626650137,-150.0,0.0001992,2]
[357967199,1744626650147,-150.0,0.00019933,2]
[357967200,1744626650157,-259.22715001,0.00019952,2]
[357967201,1744626650166,-150.0,0.00019953,2]
[357967202,1744626650176,-150.0,0.00019962,2]
[357967203,1744626650185,-150.0,0.00019967,2]
[357967204,1744626650195,-150.0,0.00019972,2]
[357967205,1744626650206,-538.77045901,0.00019973,2]
[357967206,1744626650216,-500.0,0.00019973,2]
[357967207,1744626650225,-502.248758,0.00019973,2]
[357967208,1744626650235,-246.67040996,0.00019973,2]
[357967209,1744626650244,-504.0037658,0.00019973,2]
[357967210,1744626650253,-578.81599954,0.00019973,2]
[357967211,1744626650264,-500.0,0.00019973,2]
[357967212,1744626650277,-503.66283739,0.00019973,2]
[357967213,1744626650286,-500.0,0.00019973,2]
[357967214,1744626650295,-501.49922872,0.00019973,2]
[357967215,1744626650306,-360.26739713,0.00019973,2]
[357967216,1744626650315,-624.18,0.00019985,2]
[357967217,1744626650325,-831.8040572,0.00019986,2]
[357967218,1744626650335,-214657.9512647,0.00019986,2]
[357967219,1744626650345,-150.0,0.00019989,2]
[357967220,1744626650355,-150.0,0.00019991,2]
[357967221,1744626650365,-150.0,0.00019998,2]
[357967222,1744626650374,-500.0,0.00019999,2]
[357967223,1744626650384,-865.56,0.00019999,2]
[357967224,1744626650393,-500.0,0.00019999,2]
[357967225,1744626650403,-500.0,0.00019999,2]
[357967226,1744626650412,-500.0,0.00019999,2]
[357967227,1744626650421,-500.0,0.00019999,2]
[357967228,1744626650431,-500.0,0.00019999,2]
[357967229,1744626650441,-500.0,0.00019999,2]
[357967230,1744626650451,-355.18,0.00019999,2]
[357967231,1744626650461,-861.0,0.0002,2]
[357967232,1744626650470,-95613.36244724,0.0002,2]
[357967233,1744626650480,-521330.63886274,0.0002,2]
[357967234,1744626650516,-5773.44,0.0002,2]
[357967235,1744626650534,-665.80979986,0.0002,2]
[357967236,1744626650729,-2226.85697584,0.00019986,2]
[357967237,1744626651520,-1282.17742093,0.00019986,2]
[357967238,1744626832672,152.034362,0.00025,30]
[357967239,1744627094569,10030.0,0.00025,30]
[357967240,1744627326627,150.0,0.00015,2]
[357967241,1744627357072,150.0,0.00015,2]
[357967242,1744627364132,150.0,0.00015,2]
[357967243,1744627371689,150.0,0.00015,2]
[357967244,1744627385693,900.0,0.0001,2]
[357967245,1744627436815,629.11,0.00016037,2]
[357967246,1744627437835,-258.3893972,0.00017953,2]
[357967247,1744627437861,-157.1,0.00017982,2]
[357967248,1744627437887,-200.7632028,0.00018019,2]
[357967249,1744627444351,-99.2367972,0.00018019,2]
[357967250,1744627444376,-72.8329578,0.00018019,2]
[357967251,1744627466646,-180.78815424,0.00018019,2]
[357967252,1744627486527,-250.0,0.00017863,2]
[357967253,1744627501545,-185.02435598,0.00017863,2]
[357967254,1744627506225,-152.34,0.00017863,2]
[357967255,1744627518347,-176.33,0.00017863,2]
[357967256,1744627529243,-316.93119402,0.00017863,2]
[357967257,1744627529268,-176.33,0.00017933,2]
[357967258,1744627529291,-240.88,0.0001795,2]
[357967259,1744627529317,-184.71,0.00017953,2]
[357967260,1744627529341,-300.0,0.00018019,2]
[357967261,1744627529366,-23517.03,0.0001802,2]
[357967262,1744627529388,-1802.97,0.00018043,2]
[357967263,1744627529411,-250.0,0.00018054,2]
[357967264,1744627529434,-629.11,0.00018301,2]
[357967265,1744627529458,-170.53,0.00018482,2]
[357967266,1744627529483,-250.0,0.00018728,2]
[357967267,1744627529508,-198.68,0.00018858,2]
[357967268,1744627529535,-198.68,0.00018863,2]
[357967269,1744627529560,-272.93,0.00018866,2]
[357967270,1744627529587,-198.68,0.00018868,2]
[357967271,1744627529614,-198.68,0.00018873,2]
[357967272,1744627529646,-198.68,0.00018878,2]
[357967273,1744627529671,-198.68,0.00018883,2]
[357967274,1744627529694,-255.31,0.00018883,2]
[357967275,1744627529718,-198.68,0.00018887,2]
[357967276,1744627529741,-1288.78,0.00018891,2]
[357967277,1744627529764,-198.68,0.00018892,2]
[357967278,1744627529791,-198.68,0.00018897,2]
[357967279,1744627529814,-198.68,0.00018902,2]
[357967280,1744627529836,-198.68,0.00018907,2]
[357967281,1744627529860,-198.68,0.00018912,2]
[357967282,1744627529882,-198.68,0.00018917,2]
[357967283,1744627529905,-198.68,0.00018922,2]
[357967284,1744627529928,-198.68,0.00018927,2]
[357967285,1744627529952,-198.68,0.00018932,2]
[357967286,1744627529975,-198.68,0.00018937,2]
[357967287,1744627530000,-198.68,0.00018942,2]
[357967288,1744627530023,-198.68,0.00018947,2]
[357967289,1744627530046,-198.68,0.00018952,2]
[357967290,1744627530069,-1343.58,0.00019,2]
[357967291,1744627530091,-1343.58,0.00019,2]
[357967292,1744627530115,-1343.58,0.00019,2]
[357967293,1744627530138,-1343.58,0.00019,2]
[357967294,1744627530162,-1343.58,0.00019,2]
[357967295,1744627530187,-250.0,0.00019,2]
[357967296,1744627530212,-18342.2360829,0.00019,2]
[357967297,1744627530239,-865.6924844,0.00019078,2]
[357967298,1744627530264,-518.74317875,0.00019078,2]
[357967299,1744627530287,-209.97,0.00019168,2]
[357967300,1744627530312,-865.6924844,0.00019169,2]
[357967301,1744627530336,-504.77405105,0.00019178,2]
[357967302,1744627530359,-490.0,0.00019178,2]
[357967303,1744627530383,-500.0,0.00019178,2]
[357967304,1744627530406,-574.42499993,0.00019178,2]
[357967305,1744627530431,-503.07402917,0.00019178,2]
[357967306,1744627530454,-500.0,0.00019178,2]
[357967307,1744627530480,-500.0,0.00019178,2]
[357967308,1744627530505,-194.99,0.00019178,2]
[357967309,1744627530536,-500.0,0.00019178,2]
[357967310,1744627530561,-500.0,0.00019178,2]
[357967311,1744627530586,-500.0,0.00019178,2]
[357967312,1744627530612,-500.0,0.00019178,2]
[357967313,1744627530636,-500.0,0.00019178,2]
[357967314,1744627530660,-500.0,0.00019178,2]
[357967315,1744627530684,-500.0,0.00019178,2]
[357967316,1744627530707,-500.0,0.00019178,2]
[357967317,1744627530731,-504.89127558,0.00019178,2]
[357967318,1744627530754,-500.0,0.00019178,2]
[357967319,1744627530776,-500.0,0.00019178,2]
[357967320,1744627530799,-500.0,0.00019178,2]
[357967321,1744627530821,-500.0,0.00019178,2]
[357967322,1744627530844,-500.0,0.00019178,2]
[357967323,1744627530866,-504.7776636,0.00019178,2]
[357967324,1744627530889,-500.0,0.00019178,2]
[357967325,1744627530912,-500.0,0.00019178,2]
[357967326,1744627530935,-500.0,0.00019178,2]
[357967327,1744627530958,-500.0,0.00019178,2]
[357967328,1744627530983,-500.0,0.00019178,2]
[357967329,1744627531007,-500.0,0.00019178,2]
[357967330,1744627531030,-500.0,0.00019178,2]
[357967331,1744627531053,-500.0,0.00019178,2]
[357967332,1744627531076,-530.6396563,0.00019178,2]
[357967333,1744627531098,-500.0,0.00019178,2]
[357967334,1744627531123,-500.0,0.00019178,2]
[357967335,1744627531146,-500.0,0.00019178,2]
[357967336,1744627531171,-500.0,0.00019178,2]
[357967337,1744627531196,-500.0,0.00019178,2]
[357967338,1744627531220,-500.0,0.00019178,2]
[357967339,1744627531245,-624.18,0.00019178,2]
[357967340,1744627531269,-209.47591344,0.00019178,2]
[357967341,1744627531291,-500.0,0.00019178,2]
[357967342,1744627531316,-330.92927667,0.00019178,2]
[357967343,1744627531341,-500.0,0.00019178,2]
[357967344,1744627531366,-500.0,0.00019178,2]
[357967345,1744627531391,-500.0,0.00019178,2]
[357967346,1744627531415,-500.0,0.00019178,2]
[357967347,1744627531438,-500.0,0.00019178,2]
[357967348,1744627531463,-500.0,0.00019178,2]
[357967349,1744627531488,-500.0,0.00019178,2]
[357967350,1744627531511,-500.0,0.00019178,2]
[357967351,1744627531540,-500.0,0.00019178,2]
[357967352,1744627531566,-500.0,0.00019178,2]
[357967353,1744627531589,-536.16676614,0.00019178,2]
[357967354,1744627531614,-500.0,0.00019178,2]
[357967355,1744627531638,-500.0,0.00019178,2]
[357967356,1744627531667,-500.0,0.00019178,2]
[357967357,1744627531690,-500.0,0.00019178,2]
[357967358,1744627531716,-500.0,0.00019178,2]
[357967359,1744627531742,-539.61124762,0.00019178,2]
[357967360,1744627531766,-500.0,0.00019178,2]
[357967361,1744627531793,-500.0,0.00019178,2]
[357967362,1744627531816,-500.0,0.00019178,2]
[357967363,1744627531838,-500.0,0.00019178,2]
[357967364,1744627531861,-500.0,0.00019178,2]
[357967365,1744627531884,-500.0,0.00019178,2]
[357967366,1744627531906,-500.0,0.00019178,2]
[357967367,1744627531928,-500.0,0.00019178,2]
[357967368,1744627531951,-500.0,0.00019178,2]
[357967369,1744627531973,-340.54197422,0.00019178,2]
[357967370,1744627531996,-500.0,0.00019178,2]
[357967371,1744627532020,-500.0,0.00019178,2]
[357967372,1744627532042,-500.0,0.00019178,2]
[357967373,1744627532065,-500.0,0.00019178,2]
[357967374,1744627532088,-274.79,0.00019178,2]
[357967375,1744627532111,-500.0,0.00019178,2]
[357967376,1744627532133,-500.0,0.00019178,2]
[357967377,1744627532156,-500.0,0.00019178,2]
[357967378,1744627532180,-444.69,0.00019178,2]
[357967379,1744627532204,-442.03,0.00019178,2]
[357967380,1744627532230,-309.8,0.00019178,2]
[357967381,1744627532253,-500.0,0.00019178,2]
[357967382,1744627532277,-500.0,0.00019178,2]
[357967383,1744627532300,-500.0,0.00019178,2]
[357967384,1744627532324,-500.0,0.00019178,2]
[357967385,1744627532349,-500.0,0.00019178,2]
[357967386,1744627532373,-500.0,0.00019178,2]
[357967387,1744627532398,-500.0,0.00019178,2]
[357967388,1744627532427,-584.22711303,0.00019178,2]
[357967389,1744627532451,-500.0,0.00019178,2]
[357967390,1744627532477,-500.0,0.00019178,2]
[357967391,1744627532503,-500.0,0.00019178,2]
[357967392,1744627532532,-500.0,0.00019178,2]
[357967393,1744627532557,-505.39,0.00019178,2]
[357967394,1744627532585,-500.0,0.00019178,2]
[357967395,1744627532610,-500.0,0.00019178,2]
[357967396,1744627532641,-500.0,0.00019178,2]
[357967397,1744627532665,-500.0,0.00019178,2]
[357967398,1744627532691,-500.0,0.00019178,2]
[357967399,1744627532715,-500.0,0.00019178,2]
[357967400,1744627532739,-500.0,0.00019178,2]
[357967401,1744627532764,-500.0,0.00019178,2]
[357967402,1744627532790,-500.0,0.00019178,2]
[357967403,1744627532816,-572.73,0.00019178,2]
[357967404,1744627532840,-500.0,0.00019178,2]
[357967405,1744627533077,-500.0,0.00019178,2]
[357967406,1744627533102,-500.0,0.00019178,2]
[357967407,1744627533127,-500.0,0.00019178,2]
[357967408,1744627533151,-500.0,0.00019178,2]
[357967409,1744627533175,-500.0,0.00019178,2]
[357967410,1744627533200,-500.0,0.00019178,2]
[357967411,1744627533224,-500.0,0.00019178,2]
[357967412,1744627533260,-500.0,0.00019178,2]
[357967413,1744627533284,-541.45,0.00019178,2]
[357967414,1744627533308,-500.0,0.00019178,2]
[357967415,1744627533333,-500.0,0.00019178,2]
[357967416,1744627533357,-500.0,0.00019178,2]
[357967417,1744627533381,-500.0,0.00019178,2]
[357967418,1744627533406,-500.0,0.00019178,2]
[357967419,1744627533431,-500.0,0.00019178,2]
[357967420,1744627533456,-500.0,0.00019178,2]
[357967421,1744627533485,-500.0,0.00019178,2]
[357967422,1744627533510,-500.0,0.00019178,2]
[357967423,1744627533538,-500.0,0.00019178,2]
[357967424,1744627533562,-500.0,0.00019178,2]
[357967425,1744627533589,-500.0,0.00019178,2]
[357967426,1744627533614,-500.0,0.00019178,2]
[357967427,1744627533640,-500.0,0.00019178,2]
[357967428,1744627533666,-528.77,0.00019178,2]
[357967429,1744627533690,-500.0,0.00019178,2]
[357967430,1744627533716,-500.0,0.00019178,2]
[357967431,1744627533742,-500.0,0.00019178,2]
[357967432,1744627533768,-735.33,0.00019178,2]
[357967433,1744627533793,-500.0,0.00019178,2]
[357967434,1744627533818,-500.0,0.00019178,2]
[357967435,1744627533845,-500.0,0.00019178,2]
[357967436,1744627533871,-500.0,0.00019178,2]
[357967437,1744627533898,-500.0,0.00019178,2]
[357967438,1744627533923,-500.0,0.00019178,2]
[357967439,1744627533948,-500.0,0.00019178,2]
[357967440,1744627533973,-500.0,0.00019178,2]
[357967441,1744627534001,-500.0,0.00019178,2]
[357967442,1744627534026,-500.0,0.00019178,2]
[357967443,1744627534050,-509.20915493,0.00019178,2]
[357967444,1744627534074,-500.0,0.00019178,2]
[357967445,1744627534099,-983.95,0.00019178,2]
[357967446,1744627534123,-502.95613348,0.00019178,2]
[357967447,1744627534148,-500.0,0.00019178,2]
[357967448,1744627534174,-500.74,0.00019178,2]
[357967449,1744627534199,-500.0,0.00019178,2]
[357967450,1744627534226,-219.7773531,0.00019178,2]
[357967451,1744627534252,-500.0,0.00019178,2]
[357967452,1744627534277,-503.81,0.00019178,2]
[357967453,1744627534304,-500.0,0.00019178,2]
[357967454,1744627534333,-500.0,0.00019178,2]
[357967455,1744627534364,-500.0,0.00019178,2]
[357967456,1744627534391,-500.0,0.00019178,2]
[357967457,1744627534421,-500.0,0.00019178,2]
[357967458,1744627534448,-500.0,0.00019178,2]
[357967459,1744627534475,-500.0,0.00019178,2]
[357967460,1744627534506,-500.0,0.00019178,2]
[357967461,1744627534537,-500.0,0.00019178,2]
[357967462,1744627534563,-500.0,0.00019178,2]
[357967463,1744627534590,-500.0,0.00019178,2]
[357967464,1744627534616,-576.54,0.00019178,2]
[357967465,1744627534640,-527.03,0.00019178,2]
[357967466,1744627534664,-500.0,0.00019178,2]
[357967467,1744627534689,-500.0,0.00019178,2]
[357967468,1744627534713,-537.81,0.00019178,2]
[357967469,1744627534737,-500.0,0.00019178,2]
[357967470,1744627534761,-500.0,0.00019178,2]
[357967471,1744627534785,-500.0,0.00019178,2]
[357967472,1744627534810,-500.0,0.00019178,2]
[357967473,1744627534834,-500.0,0.00019178,2]
[357967474,1744627534860,-538.01975631,0.00019178,2]
[357967475,1744627534885,-513.81051288,0.00019178,2]
[357967476,1744627534913,-500.0,0.00019178,2]
[357967477,1744627534941,-500.0,0.00019178,2]
[357967478,1744627534970,-500.0,0.00019178,2]
[357967479,1744627535009,-500.0,0.00019178,2]
[357967480,1744627535039,-500.0,0.00019178,2]
[357967481,1744627535069,-500.0,0.00019178,2]
[357967482,1744627535099,-612.82,0.00019178,2]
[357967483,1744627535128,-500.0,0.00019178,2]
[357967484,1744627535157,-500.0,0.00019178,2]
[357967485,1744627535185,-500.0,0.00019178,2]
[357967486,1744627535213,-500.0,0.00019178,2]
[357967487,1744627535247,-500.0,0.00019178,2]
[357967488,1744627535275,-500.0,0.00019178,2]
[357967489,1744627535303,-502.99452859,0.00019178,2]
[357967490,1744627535330,-500.0,0.00019178,2]
[357967491,1744627535358,-500.0,0.00019178,2]
[357967492,1744627535384,-500.0,0.00019178,2]
[357967493,1744627535410,-500.0,0.00019178,2]
[357967494,1744627535436,-500.0,0.00019178,2]
[357967495,1744627535462,-300.0,0.00019178,2]
[357967496,1744627535491,-301.92017355,0.00019178,2]
[357967497,1744627535515,-424.82330506,0.00019178,2]
[357967498,1744627535543,-463.74,0.00019178,2]
[357967499,1744627535568,-500.0,0.00019178,2]
[357967500,1744627535594,-500.0,0.00019178,2]
[357967501,1744627535620,-569.16,0.00019178,2]
[357967502,1744627535644,-500.0,0.00019178,2]
[357967503,1744627535668,-500.0,0.00019178,2]
[357967504,1744627535692,-500.0,0.00019178,2]
[357967505,1744627535715,-257.47,0.00019178,2]
[357967506,1744627535741,-500.0,0.00019178,2]
[357967507,1744627535765,-500.0,0.00019178,2]
[357967508,1744627535789,-437.31968086,0.00019178,2]
[357967509,1744627535813,-500.0,0.00019178,2]
[357967510,1744627535837,-500.0,0.00019178,2]
[357967511,1744627535861,-500.0,0.00019178,2]
[357967512,1744627535884,-500.0,0.00019178,2]
[357967513,1744627535908,-500.0,0.00019178,2]
[357967514,1744627535932,-595.99,0.00019178,2]
[357967515,1744627535957,-500.0,0.00019178,2]
[357967516,1744627535984,-500.0,0.00019178,2]
[357967517,1744627536006,-500.0,0.00019178,2]
[357967518,1744627536028,-500.0,0.00019178,2]
[357967519,1744627536051,-500.0,0.00019178,2]
[357967520,1744627536074,-512.83,0.00019178,2]
[357967521,1744627536097,-500.0,0.00019178,2]
[357967522,1744627536120,-452.51,0.00019178,2]
[357967523,1744627536144,-500.0,0.00019178,2]
[357967524,1744627536166,-500.0,0.00019178,2]
[357967525,1744627536189,-880.98,0.00019178,2]